{"text_format":"1","workbook":"xlsx","n_sheets":2,"sheets":["Membership of sectors","Chart"],"not_rendered":{"charts":2,"images":0,"macros":0,"external_links":1,"defined_names":3,"comments":0,"pivot_tables":0},"unopened":[{"sheet":"Chart","index":1,"reason":"not_a_worksheet"}],"bounds":{"document_bytes":16777216,"sheet_cells":100000,"rows_first":2000,"rows_last":500,"rows_between":2000,"halvings":0,"cell_chars":16384,"cell_head_chars":4096},"cells_cut":0,"cells_raw":0,"read":"whole","date_system":"1900"}

{"sheet":"Membership of sectors","index":0,"n_rows":72,"n_cols":60,"rows_kept":72,"cut":false,"hidden":false,"merged":[[71,0,71,9],[68,0,68,9],[69,0,69,9],[0,0,0,4]]}
["Figure 6.4: Membership of various sectors, 1950s-2000s"]
[]
[null,1951,1952,1953,1954,1955,1956,1957,1958,1959,1960,1961,1962,1963,1964,1965,1966,1967,1968,1969,1970,1971,1972,1973,1974,1975,1976,1977,1978,1979,1980,1981,1982,1983,1984,1985,1986,1987,1988,1989,1990,1991,1992,1993,1994,1995,1996,1997,1998,1999,2000,2001,2002,2003,2004,2005,2006,2007,2008,2009]
["Youth organizations"]
["Cub Scouts",192,null,null,null,null,null,null,null,null,null,245,null,null,null,null,246,null,null,null,null,265,null,null,null,null,296,null,null,null,null,309,null,null,null,null,332,null,null,null,null,349,null,null,null,null,null,null,null,null,null,null,null,null,null,null,null,null,null,234]
["Brownies",184,null,null,null,null,null,null,null,null,null,284,null,null,null,null,329,null,null,null,null,376,null,null,null,null,410,null,null,null,null,427,null,null,null,null,384,null,null,null,null,385,null,null,null,null,null,null,null,null,null,null,null,null,null,null,null,null,null,331]
["Scouts",237,null,null,null,null,null,null,null,null,null,272,null,null,null,null,242,null,null,null,null,215,null,null,null,null,225,null,null,null,null,234,null,null,null,null,213,null,null,null,null,192,null,null,null,null,null,null,null,null,null,null,null,null,null,null,null,null,null,134]
["Girl Guides",221,null,null,null,null,null,null,null,null,null,266,null,null,null,null,244,null,null,null,null,316,null,null,null,null,344,null,null,null,null,348,null,null,null,null,282,null,null,null,null,225,null,null,null,null,null,null,null,null,null,null,null,null,null,null,null,null,null,146]
["Sea Cadet Corps",19,null,null,null,null,null,null,null,null,null,18,null,null,null,null,18,null,null,null,null,18,null,null,null,null,19,null,null,null,null,19,null,null,null,null,17,null,null,null,null,16,null,null,null,null,null,null,null,null,null,null,null,null,null,null,null,null,null,14]
["Army Cadet Corps",64,null,null,null,null,null,null,null,null,null,44,null,null,null,null,38,null,null,null,null,39,null,null,null,null,42,null,null,null,null,46,null,null,null,null,43,null,null,null,null,39,null,null,null,null,null,null,null,null,null,null,null,null,null,null,null,null,null,45]
["Air Training Corps",38,null,null,null,null,null,null,null,null,null,30,null,null,null,null,26,null,null,null,null,33,null,null,null,null,34,null,null,null,null,35,null,null,null,null,35,null,null,null,null,34,null,null,null,null,null,null,null,null,null,null,null,null,null,null,null,null,null,41]
["Combined Cadet Force",58,null,null,null,null,null,null,null,null,null,76,null,null,null,null,49,null,null,null,null,45,null,null,null,null,43,null,null,null,null,44,null,null,null,null,43,null,null,null,null,40,null,null,null,null,null,null,null,null,null,null,null,null,null,null,null,null,null,42]
["Boys Brigade",142,null,null,null,null,null,null,null,null,null,159,null,null,null,null,143,null,null,null,null,140,null,null,null,null,137,null,null,null,null,154,null,null,null,null,120,null,null,null,null,103,null,null,null,null,null,null,null,null,null,null,null,null,null,null,null,null,null,53]
["Methodist Association of Youth Clubs",101,null,null,null,null,null,null,null,null,null,110,null,null,null,null,121,null,null,null,null,115,null,null,null,null,131,null,null,null,null,127,null,null,null,null,100,null,null,null,null,40,null,null,null,null,null,null,null,null,null,null,null,null,null,null,null,null,null,34]
["Boys and Girl Youth Clubs (continuous) ",152,null,null,null,null,null,null,null,null,null,136,null,null,null,null,239,null,null,null,null,319,null,null,null,null,519,null,null,null,null,771,null,null,null,null,595,null,null,null,null,600,null,null,null,null,null,null,null,null,null,null,null,null,null,null,null,null,null,400]
["Girls Brigade",null,null,null,null,null,null,null,null,null,null,null,null,null,null,null,98,null,null,null,null,104,null,null,null,null,100,null,null,null,null,99.5,null,null,null,null,83,null,null,null,null,40,null,null,null,null,null,null,null,null,null,null,null,null,null,null,null,null,null,21]
["Total ",{"$f":"SUM(B5:B14)","v":1256},null,null,null,null,null,null,null,null,null,{"$f":"SUM(L5:L14)","v":1504},null,null,null,null,{"$f":"SUM(Q5:Q16)","v":1793},null,null,null,null,{"$f":"SUM(V5:V16)","v":1985},null,null,null,null,{"$f":"SUM(AA5:AA16)","v":2300},null,null,null,null,{"$f":"SUM(AF5:AF16)","v":2613.5},null,null,null,null,{"$f":"SUM(AK5:AK16)","v":2247},null,null,null,null,{"$f":"SUM(AP5:AP16)","v":2063},null,null,null,null,null,null,null,null,null,null,null,null,null,null,null,null,null,{"$f":"SUM(BH5:BH16)","v":1495}]
["Youth",1256,null,null,null,null,null,null,null,null,null,1504,null,null,null,null,1793,null,null,null,null,1985,null,null,null,null,2300,null,null,null,null,2613.5,null,null,null,null,2247,null,null,null,null,2063,null,null,null,null,null,null,null,null,null,null,null,null,null,null,null,null,null,1495]
[]
["Traditional women’s organizations"]
["Mother’s Union",null,null,null,null,null,null,null,null,null,null,null,null,null,null,null,null,null,null,null,null,308,null,null,null,null,null,null,null,null,null,210,null,null,null,null,188,null,null,null,null,169,null,null,null,null,null,null,null,null,null,null,null,null,null,null,null,null,null,165]
["National Federation of Women’s Institutes",null,null,null,null,null,null,null,null,null,null,null,null,null,null,null,null,null,null,null,null,440,null,null,null,null,null,null,null,null,null,378,null,null,null,null,347,null,null,null,null,310,null,null,null,null,null,null,null,null,null,null,null,null,null,null,null,null,null,205]
["National Women’s Register",null,null,null,null,null,null,null,null,null,null,null,null,null,null,null,null,null,null,null,null,15,null,null,null,null,null,null,null,null,null,24,null,null,null,null,23,null,null,null,null,14,null,null,null,null,null,null,null,null,null,null,null,null,null,null,null,null,null,7.3]
["National Union of Townswomen’s Guilds",null,null,null,null,null,null,null,null,null,null,null,null,null,null,null,null,null,null,null,null,216,null,null,null,null,null,null,null,null,null,155,null,null,null,null,150,null,null,null,null,100,null,null,null,null,null,null,null,null,null,null,null,null,null,null,null,null,null,34]
["Church of Scotland Women’s Guild",null,null,null,null,null,null,null,null,null,null,null,null,null,null,null,null,null,null,null,null,127,null,null,null,null,null,null,null,null,null,86,null,null,null,null,68,null,null,null,null,66,null,null,null,null,null,null,null,null,null,null,null,null,null,null,null,null,null,30]
["Scottish Women’s Rural Institutes",null,null,null,null,null,null,null,null,null,null,null,null,null,null,null,null,null,null,null,null,58,null,null,null,null,null,null,null,null,null,50,null,null,null,null,42,null,null,null,null,36,null,null,null,null,null,null,null,null,null,null,null,null,null,null,null,null,null,22]
["Association of Inner Wheel clubs",null,null,null,null,null,null,null,null,null,null,null,null,null,null,null,null,null,null,null,null,30,null,null,null,null,null,null,null,null,null,34,null,null,null,null,36,null,null,null,null,35,null,null,null,null,null,null,null,null,null,null,null,null,null,null,null,null,null,22]
["National Council of Women",null,null,null,null,null,null,null,null,null,null,null,null,null,null,null,null,null,null,null,null,6,null,null,null,null,null,null,null,null,null,3,null,null,null,null,2,null,null,null,null,3,null,null,null,null,null,null,null,null,null,null,null,null,null,null,null,null,null,3]
["total (calculated)",null,null,null,null,null,null,null,null,null,null,null,null,null,null,null,null,null,null,null,null,{"$f":"SUM(V21:V28)","v":1200},null,null,null,null,{"$f":"(V29+AF29)/2","v":1070},null,null,null,null,{"$f":"SUM(AF21:AF28)","v":940},null,null,null,null,{"$f":"SUM(AK21:AK28)","v":856},null,null,null,null,{"$f":"SUM(AP21:AP28)","v":733},null,null,null,null,null,null,null,null,null,null,null,null,null,null,null,null,null,{"$f":"SUM(BH21:BH28)","v":488.3}]
["Women's",null,null,null,null,null,null,null,null,null,null,null,null,null,null,null,null,null,null,null,null,1200,null,null,null,null,null,null,null,null,null,940,null,null,null,null,856,null,null,null,null,733,null,null,null,null,null,null,null,null,null,null,null,null,null,null,null,null,null,488.3]
[]
[]
["Environmental"]
["Civic Trust",null,null,null,null,null,null,null,null,null,null,null,null,null,null,null,null,null,null,null,null,214,null,null,null,null,null,null,null,null,null,244,null,null,null,null,241,null,null,null,null,222,null,null,null,null,null,null,null,null,null,null,null,null,null,null,null,null,null,250]
["Conservation Society / Trust",null,null,null,null,null,null,null,null,null,null,null,null,null,null,null,null,null,null,null,null,6,null,null,null,null,null,null,null,null,null,5,null,null,null,null,4,null,null,null,null,3]
["CPRE",null,null,null,null,null,null,null,null,null,null,null,null,null,null,null,null,null,null,null,null,21,null,null,null,null,null,null,null,null,null,29,null,null,null,null,32,null,null,null,null,45,null,null,null,null,null,null,null,null,null,null,null,null,null,null,null,null,null,60]
["FoE (Eng & Wales)",null,null,null,null,null,null,null,null,null,null,null,null,null,null,null,null,null,null,null,null,1,null,null,null,null,null,null,null,null,null,18,null,null,null,null,28,null,null,null,null,111,null,null,null,null,null,null,null,null,null,null,null,null,null,null,null,null,null,100]
["Wildlife Trusts",null,null,null,null,null,null,null,null,null,null,null,null,null,null,null,null,null,null,null,null,64,null,null,null,null,null,null,null,null,null,142,null,null,null,null,179,null,null,null,null,233,null,null,null,null,null,null,null,null,null,null,null,null,null,null,null,null,null,765]
["RSPB",null,null,null,null,null,null,null,null,null,null,null,null,null,null,null,null,null,null,null,null,98,null,null,null,null,null,null,null,null,null,441,null,null,null,null,506,null,null,null,null,852,null,null,null,null,null,null,null,null,null,null,null,null,null,null,null,null,null,1057]
["WWF",null,null,null,null,null,null,null,null,null,null,null,null,null,null,null,null,null,null,null,null,12,null,null,null,null,null,null,null,null,null,60,null,null,null,null,106,null,null,null,null,227,null,null,null,null,null,null,null,null,null,null,null,null,null,null,null,null,null,330]
["Total",null,null,null,null,null,null,null,null,null,null,null,null,null,null,null,null,null,null,null,null,{"$f":"SUM(V34:V40)","v":416},null,null,null,null,null,null,null,null,null,{"$f":"SUM(AF34:AF40)","v":939},null,null,null,null,{"$f":"SUM(AK34:AK40)","v":1096},null,null,null,null,{"$f":"SUM(AP34:AP40)","v":1693},null,null,null,null,null,null,null,null,null,null,null,null,null,null,null,null,null,{"$f":"SUM(BH34:BH40)","v":2562}]
["Environmental",null,null,null,null,null,null,null,null,null,null,null,null,null,null,null,null,null,null,null,null,416,null,null,null,null,null,null,null,null,null,939,null,null,null,null,1096,null,null,null,null,1693,null,null,null,null,null,null,null,null,null,null,null,null,null,null,null,null,null,2562]
[]
[]
["Service organizations"]
["National Association of Round Tables of GB and Ireland",null,null,null,null,null,null,null,null,null,null,null,null,null,null,null,null,null,null,null,null,29,null,null,null,null,null,null,null,null,null,30,null,null,null,null,null,null,null,null,null,22,null,null,null,null,null,null,null,null,null,null,null,null,null,null,null,null,null,6.5]
["Rotary International in GB and Ireland",null,null,null,null,null,null,null,null,null,null,null,null,null,null,null,null,null,null,null,null,50,null,null,null,null,null,null,null,null,null,60,null,null,null,null,63,null,null,null,null,65,null,null,null,null,null,null,null,null,null,null,null,null,null,null,null,null,null,55]
["Royal British Legion (1971-)",null,null,null,null,null,null,null,null,null,null,null,null,null,null,null,null,null,null,null,null,750,null,null,null,null,null,null,null,null,null,937,null,null,null,null,858,null,null,null,null,660,null,null,null,null,null,null,null,null,null,null,null,null,null,null,null,null,null,380]
["Royal MENCAP Society (2002-)",null,null,null,null,null,null,null,null,null,null,null,null,null,null,null,null,null,null,null,null,40,null,null,null,null,null,null,null,null,null,null,null,null,null,null,55,null,null,null,null,75,null,null,null,null,null,null,null,null,null,null,null,null,null,null,null,null,null,50]
["St. John Ambulance Brigade",null,null,null,null,null,null,null,null,null,null,null,null,null,null,null,null,null,null,null,null,91,null,null,null,null,null,null,null,null,null,77,null,null,null,null,60,null,null,null,null,55,null,null,null,null,null,null,null,null,null,null,null,null,null,null,null,null,null,43]
["Total",null,null,null,null,null,null,null,null,null,null,null,null,null,null,null,null,null,null,null,null,{"$f":"SUM(V46:V50)","v":960},null,null,null,null,{"$f":"(V51+AF51)/2","v":1032},null,null,null,null,{"$f":"SUM(AF46:AF50)","v":1104},null,null,null,null,{"$f":"SUM(AK46:AK50)","v":1036},null,null,null,null,{"$f":"SUM(AP46:AP50)","v":877},null,null,null,null,null,null,null,null,null,null,null,null,null,null,null,null,null,{"$f":"SUM(BH46:BH50)","v":534.5}]
["Service",null,null,null,null,null,null,null,null,null,null,null,null,null,null,null,null,null,null,null,null,960,null,null,null,null,null,null,null,null,null,1104,null,null,null,null,1036,null,null,null,null,877,null,null,null,null,null,null,null,null,null,null,null,null,null,null,null,null,null,534.5]
[]
["Camping Club of GB and Ireland",14,null,null,null,null,null,null,null,null,null,52,null,null,null,null,92,null,null,null,null,110,null,null,null,null,175,null,null,null,null,178,null,null,null,null,{"$f":"$AF54+(($BH54-$AF54)/3)","v":252},null,null,null,null,{"$f":"$AF54+(($BH54-$AF54)*2/3)","v":326},null,null,null,null,null,null,null,null,null,null,null,null,null,null,null,null,null,400]
["Caravan Club",11,null,null,null,null,null,null,null,null,null,44,null,null,null,null,41,null,null,null,null,84,null,null,null,null,174,null,null,null,null,193,null,null,null,null,252,null,null,null,null,311,null,null,null,null,null,null,null,null,null,null,null,null,null,null,null,null,null,370]
["Youth Hostel Association",237,null,null,null,null,null,null,null,null,null,219,null,null,null,null,265,null,null,null,null,264,null,null,null,null,318,null,null,null,null,316,null,null,null,null,281.66666666666669,null,null,null,null,247.33333333333331,null,null,null,null,null,null,null,null,null,null,null,null,null,null,null,null,null,213]
["Ramblers Association",9,null,null,null,null,null,null,null,null,null,11,null,null,null,null,14,null,null,null,null,22,null,null,null,null,30,null,null,null,null,38,null,null,null,null,71,null,null,null,null,104,null,null,null,null,null,null,null,null,null,null,null,null,null,null,null,null,null,137]
["British Horse Society",4,null,null,null,null,null,null,null,null,null,6,null,null,null,null,10,null,null,null,null,17,null,null,null,null,22,null,null,null,null,33,null,null,null,null,44.333333333333336,null,null,null,null,55.666666666666671,null,null,null,null,null,null,null,null,null,null,null,null,null,null,null,null,null,67]
["The Pony Club",20,null,null,null,null,null,null,null,null,null,30,null,null,null,null,29,null,null,null,null,33,null,null,null,null,48,null,null,null,null,56,null,null,null,null,74,null,null,null,null,92,null,null,null,null,null,null,null,null,null,null,null,null,null,null,null,null,null,110]
["British Canoe Union",1,null,null,null,null,null,null,null,null,null,4,null,null,null,null,3,null,null,null,null,5,null,null,null,null,6,null,null,null,null,10,null,null,null,null,15.666666666666668,null,null,null,null,21.333333333333336,null,null,null,null,null,null,null,null,null,null,null,null,null,null,null,null,null,27]
["Royal Yachting Association",1,null,null,null,null,null,null,null,null,null,11,null,null,null,null,22,null,null,null,null,31,null,null,null,null,49,null,null,null,null,65,null,null,null,null,76.666666666666671,null,null,null,null,88.333333333333329,null,null,null,null,null,null,null,null,null,null,null,null,null,null,null,null,null,100]
["British Sub-Aqua Club",2,null,null,null,null,null,null,null,null,null,4,null,null,null,null,7,null,null,null,null,14,null,null,null,null,25,null,null,null,null,28,null,null,null,null,30.333333333333332,null,null,null,null,32.666666666666664,null,null,null,null,null,null,null,null,null,null,null,null,null,null,null,null,null,35]
["British Cycling Federation",67,null,null,null,null,null,null,null,null,null,21,null,null,null,null,15,null,null,null,null,11,null,null,null,null,11,null,null,null,null,16,null,null,null,null,19,null,null,null,null,22,null,null,null,null,null,null,null,null,null,null,null,null,null,null,null,null,null,25]
["Cyclists Touring Club",54,null,null,null,null,null,null,null,null,null,26,null,null,null,null,22,null,null,null,null,19,null,null,null,null,26,null,null,null,null,38,null,null,null,null,45.333333333333336,null,null,null,null,52.666666666666664,null,null,null,null,null,null,null,null,null,null,null,null,null,null,null,null,null,60]
["British Field Sports Society",27,null,null,null,null,null,null,null,null,null,20,null,null,null,null,18,null,null,null,null,21,null,null,null,null,50,null,null,null,null,57,null,null,null,null,73.666666666666671,null,null,null,null,90.333333333333343,null,null,null,null,null,null,null,null,null,null,null,null,null,null,null,null,null,107]
["Total",{"$f":"SUM(B54:B65)","v":447},null,null,null,null,null,null,null,null,null,{"$f":"SUM(L54:L65)","v":448},null,null,null,null,{"$f":"SUM(Q54:Q65)","v":538},null,null,null,null,{"$f":"SUM(V54:V65)","v":631},null,null,null,null,{"$f":"SUM(AA54:AA65)","v":934},null,null,null,null,{"$f":"SUM(AF54:AF65)","v":1028},null,null,null,null,{"$f":"SUM(AK54:AK65)","v":1235.6666666666667},null,null,null,null,{"$f":"SUM(AP54:AP65)","v":1443.3333333333333},null,null,null,null,null,null,null,null,null,null,null,null,null,null,null,null,null,{"$f":"SUM(BH54:BH65)","v":1651}]
["Outdoor",447,null,null,null,null,null,null,null,null,null,448,null,null,null,null,538,null,null,null,null,631,null,null,null,null,934,null,null,null,null,1028,null,null,null,null,1235.6666666666667,null,null,null,null,1443.3333333333333,null,null,null,null,null,null,null,null,null,null,null,null,null,null,null,null,null,1651]
[]
["Note 1: The number of beaver scouts have been added to the number of Cub scouts for certain years, when appropriate."]
["Note 2: Some Service organisations, for example the Red Cross, have been omitted from this table, even though there some data on their membership had been published in Social Trend. Unfortunately, the data was not consistent across the period, so could not be used for comparison purposes."]
[]
["Source: compilation of figures from many different sources, principally from Social Trends (various years), P. A. Hall, 'Social Capital in Britain', British Journal of Political Science, 29 (1999), pp. 417-461 and organisations concerned. "]